bitfinex/quotes_ETHUSD_20250903
["timestamp","ask_amount","ask_price","bid_price","bid_amount"]
[1756941450809,3.8420611,4467.8,4467.6,0.001]
[1756941451108,3.3994611,4467.8,4467.6,0.001]
[1756941451312,2.9132611,4467.8,4467.6,0.001]
[1756941452626,2.23828815,4467.7,4467.6,0.001]
[1756941453536,2.91326299,4467.8,4467.6,0.001]
[1756941455530,0.67501318,4467.8,4467.7,0.2974]
[1756941455825,0.67501318,4467.8,4467.7,0.7593]
[1756941456032,0.67501318,4467.8,4467.7,1.07036296]
[1756941456407,0.67501318,4467.8,4467.7,0.2974]
[1756941457106,0.67501318,4467.8,4467.6,0.113]
[1756941458052,0.67501318,4467.8,4467.7,0.2974]
[1756941461124,0.67501318,4467.8,4467.7,1.1685]
[1756941461546,0.67501318,4467.8,4467.7,0.7593]
[1756941461746,0.67501318,4467.8,4467.7,0.2974]
[1756941463423,0.67501318,4467.8,4467.7,1.44847247]
[1756941463628,0.67501318,4467.8,4467.7,3.68676062]
[1756941464554,0.002,4467.8,4467.7,8.52756998]
[1756941465547,0.002,4467.8,4467.7,9.43156998]
[1756941465756,0.002,4467.8,4467.7,12.43156998]
[1756941467973,0.002,4467.8,4467.7,18.23156998]
[1756941469461,0.002,4467.8,4467.7,19.11593101]
[1756941470882,0.002,4467.8,4467.7,10.11686062]
[1756941472093,0.002,4467.8,4467.7,9.81946062]
[1756941472483,0.002,4467.8,4467.7,10.11686062]
[1756941473713,1.242,4467.8,4467.7,6.81846062]
[1756941473919,0.002,4467.8,4467.7,7.11586062]
[1756941475902,0.002,4467.8,4467.7,6.81846062]
[1756941476101,0.3132,4467.8,4467.7,6.81846062]
[1756941476603,0.002,4467.8,4467.7,6.81846062]
[1756941480336,1.2338,4467.8,4467.7,6.81846062]
[1756941480704,0.3128,4467.8,4467.7,6.81846062]
[1756941483635,0.002,4467.8,4467.7,6.81846062]
[1756941484403,0.3128,4467.8,4467.7,6.81846062]
[1756941485628,0.77,4467.8,4467.7,6.81846062]
[1756941488320,0.002,4467.8,4467.7,6.81846062]
[1756941488516,0.002,4467.8,4467.7,7.11516062]
[1756941488717,0.002,4467.8,4467.7,8.76596062]
[1756941489126,0.002,4467.8,4467.7,14.56596062]
[1756941490508,0.002,4467.8,4467.7,14.11636062]
[1756941490709,0.002,4467.8,4467.7,12.91316062]
[1756941492046,0.002,4467.8,4467.7,13.36276062]
[1756941492743,0.002,4467.8,4467.7,12.91316062]
[1756941497348,0.002,4467.8,4467.7,12.61646062]
[1756941497550,0.3128,4467.8,4467.7,12.61646062]
[1756941498050,0.3128,4467.8,4467.7,6.81646062]
[1756941498345,0.002,4467.8,4467.7,7.11316062]
[1756941499761,0.002,4467.8,4467.7,6.81646062]
[1756941500433,0.002,4467.8,4467.7,7.11316062]
[1756941501857,0.002,4467.8,4467.7,3.33616062]
[1756941502059,0.002,4467.8,4467.7,7.1335435]
[1756941502356,0.002,4467.8,4467.7,7.11116062]
[1756941503363,0.002,4467.8,4467.7,12.91116062]
[1756941504651,0.3128,4467.8,4467.7,12.61446062]
[1756941504852,0.002,4467.8,4467.7,12.61446062]
[1756941505151,0.002,4467.8,4467.7,6.81446062]
[1756941505884,0.002,4467.8,4467.7,7.11116062]
[1756941506075,0.002,4467.8,4467.7,3.33616062]
[1756941506263,0.002,4467.8,4467.7,7.11016062]
[1756941507262,0.002,4467.8,4467.7,6.81346062]
[1756941507849,0.3128,4467.8,4467.7,6.81346062]
[1756941508081,1.2338,4467.8,4467.7,6.81346062]
[1756941508660,0.77,4467.8,4467.7,6.81346062]
[1756941508967,0.3128,4467.8,4467.7,6.81346062]
[1756941509173,0.002,4467.8,4467.7,6.81346062]
[1756941510592,0.2983,4467.8,4467.7,6.81346062]
[1756941510892,0.2983,4467.8,4467.7,8.53346062]
[1756941512191,1.2218,4467.8,4467.7,8.53246062]
[1756941512693,0.7682,4467.8,4467.7,8.53246062]
[1756941513061,0.2983,4467.8,4467.7,8.53246062]
[1756941514569,1.2218,4467.8,4467.7,4.75946062]
[1756941514901,1.2218,4467.8,4467.7,8.53246062]
[1756941515066,0.7682,4467.8,4467.7,8.53246062]
[1756941516293,0.2983,4467.8,4467.7,14.33246062]
[1756941516675,0.002,4467.8,4467.7,14.62276062]
[1756941518208,0.002,4467.8,4467.7,24.57513101]
[1756941525195,0.002,4467.8,4467.7,24.16593101]
[1756941527700,0.002,4467.8,4467.7,23.73073101]
[1756941527881,0.002,4467.8,4467.7,23.44043101]
[1756941528601,1.2218,4467.8,4467.7,17.33046062]
[1756941530009,0.7682,4467.8,4467.7,17.33046062]
[1756941530208,0.002,4467.8,4467.7,17.33046062]
[1756941531219,0.002,4467.8,4467.7,18.84796062]
[1756941534999,1e-08,4468.2,4468.1,3.03008777]
[1756941535194,1e-08,4468.2,4468.1,15.0576513]
[1756941535432,1e-08,4468.2,4468.1,15.4599513]
[1756941535726,1e-08,4468.2,4468.1,21.2599513]
[1756941536522,1.21980001,4468.2,4468.1,12.76891241]
[1756941536825,1.21980001,4468.2,4468.1,6.17691241]
[1756941537128,1.21980001,4468.2,4468.1,9.94691241]
[1756941540648,0.29630001,4468.2,4468.1,9.94691241]
[1756941541344,1.21560001,4468.2,4468.1,9.94691241]
[1756941542547,1.21560001,4468.2,4468.1,11.66691241]
[1756941544331,0.76160001,4468.2,4468.1,11.66691241]
[1756941545458,1e-08,4468.2,4468.1,11.66691241]
[1756941546250,0.29300001,4468.2,4468.1,11.66691241]
[1756941546544,1e-08,4468.2,4468.1,17.2005513]
[1756941546756,0.29300001,4468.2,4468.1,16.8896513]
[1756941546929,0.75830001,4468.2,4468.1,12.45891241]
[1756941548055,1.21230001,4468.2,4468.1,12.45891241]
[1756941548960,0.75830001,4468.2,4468.1,12.45891241]
[1756941549664,0.75830001,4468.2,4468.1,18.25891241]
[1756941550367,1.21230001,4468.2,4468.1,11.66691241]
[1756941553555,0.75830001,4468.2,4468.1,11.66691241]
[1756941554949,1e-08,4468.2,4468.1,11.66691241]
[1756941555444,1e-08,4468.2,4468.1,11.97781241]
[1756941556181,1e-08,4468.2,4468.1,17.77781241]
[1756941560190,1.21230001,4468.2,4468.1,17.46691241]
[1756941560351,1.21230001,4468.2,4468.1,16.64008777]
[1756941560680,1.21230001,4468.2,4468.1,10.84008777]
[1756941567096,1e-08,4468.2,4468.1,11.15198777]
[1756941568960,1e-08,4468.2,4468.1,11.94398777]
[1756941569162,1e-08,4468.7,4468.6,6.02983735]
[1756941569375,1e-08,4468.7,4468.6,15.0523508]
[1756941569558,0.4903,4469.8,4469.0,10.46037594]
[1756941569762,0.025,4469.8,4469.0,15.94537594]
[1756941569975,0.025,4469.8,4469.0,11.38837594]
[1756941569976,0.4888,4469.5,4469.0,11.38837594]
[1756941570168,0.3164,4469.1,4469.0,12.19724581]
[1756941570367,0.3164,4469.1,4469.0,16.6279847]
[1756941571387,0.3164,4469.1,4469.0,16.9255847]
[1756941571388,0.002,4469.1,4469.0,16.9255847]
[1756941571558,0.002,4469.1,4469.0,16.6279847]
[1756941571887,0.002,4469.1,4469.0,12.19724581]
[1756941573592,0.3164,4469.1,4469.0,12.19724581]
[1756941574766,0.002,4469.1,4469.0,12.19724581]
[1756941575467,0.002,4469.1,4469.0,17.99724581]
[1756941577000,0.002,4469.1,4469.0,18.24484581]
[1756941578319,0.002,4469.1,4469.0,19.03684581]
[1756941578499,0.002,4469.1,4469.0,18.73924581]
[1756941579409,0.002,4469.1,4469.0,19.03684581]
[1756941583912,0.002,4469.1,4469.0,18.73924581]
[1756941585001,0.002,4469.1,4469.0,19.03684581]
[1756941591216,0.002,4469.1,4469.0,19.46644581]
[1756941591519,0.002,4469.1,4469.0,19.03684581]
[1756941593897,0.002,4469.1,4469.0,19.46644581]
[1756941594103,0.025,4469.8,4469.7,2.23728661]
[1756941594303,0.025,4469.8,4469.7,6.22201527]
[1756941594534,0.025,4469.8,4469.7,6.51961527]
[1756941594740,0.025,4469.8,4469.7,12.43161527]
[1756941595736,0.025,4469.8,4469.7,13.22361527]
[1756941598746,0.025,4469.8,4469.7,12.92601527]
[1756941599633,0.025,4469.8,4469.7,13.22361527]
[1756941600216,0.025,4469.8,4469.7,12.92601527]
[1756941601518,0.8075,4469.8,4469.7,12.92601527]
[1756941602832,0.8095,4469.8,4469.7,12.92601527]
[1756941604359,0.027,4469.8,4469.7,12.92601527]
[1756941607426,0.8095,4469.8,4469.7,9.16501527]
[1756941607747,0.8095,4469.8,4469.7,6.10828661]
[1756941608625,0.8095,4469.8,4469.7,7.82828661]
[1756941609132,0.027,4469.8,4469.7,7.82828661]
[1756941609364,0.3189,4469.8,4469.7,7.82828661]
[1756941609561,0.8095,4469.8,4469.7,7.82828661]
[1756941610174,1.2479,4469.8,4469.7,7.82828661]
[1756941610960,0.8095,4469.8,4469.7,7.82828661]
[1756941611560,0.027,4469.8,4469.7,7.82828661]
[1756941612243,0.027,4469.8,4469.7,9.95245097]
[1756941613653,0.3189,4469.8,4469.7,9.95245097]
[1756941613853,0.027,4469.8,4469.7,9.95245097]
[1756941614241,0.027,4469.8,4469.7,15.75245097]
[1756941614642,0.8095,4469.8,4469.7,15.75245097]
[1756941614851,0.8095,4469.8,4469.7,13.62828661]
[1756941615168,1.2479,4469.8,4469.7,9.86928661]
[1756941615367,1.2479,4469.8,4469.7,13.62728661]
[1756941615533,1.2479,4469.8,4469.7,7.82728661]
[1756941616346,1.2479,4469.8,4469.7,4.06928661]
[1756941616546,1.9203942,4469.8,4469.7,7.82628661]
[1756941619254,1.9203942,4469.8,4469.7,4.06928661]
[1756941619457,1.9203942,4469.8,4469.7,7.82628661]
[1756941632802,1.4819942,4469.8,4469.7,7.82628661]
[1756941633897,1.9371942,4469.8,4469.7,7.82628661]
[1756941635898,1.4819942,4469.8,4469.7,7.82628661]
[1756941636403,0.6994942,4469.8,4469.7,8.13468661]
[1756941636600,0.027,4469.8,4469.7,8.56015632]
[1756941636901,1e-08,4469.8,4469.7,9.01315632]
[1756941637104,1e-08,4470.3,4470.2,2.23703637]
[1756941637272,1e-08,4470.3,4470.2,7.91005081]
[1756941637600,1e-08,4470.3,4470.2,13.71005081]
[1756941637803,1e-08,4470.3,4470.2,13.82205081]
[1756941638309,1e-08,4470.3,4470.2,16.82205081]
[1756941641016,1e-08,4470.3,4470.2,17.61405081]
[1756941641310,0.002,4471.2,4471.1,2.23658607]
[1756941641514,0.002,4471.2,4471.1,8.46631061]
[1756941641811,0.002,4471.2,4471.1,8.57831061]
[1756941642792,0.002,4471.2,4471.1,8.26991061]
[1756941644221,0.2907,4471.2,4471.1,8.26991061]
[1756941644720,0.002,4471.2,4471.1,8.26991061]
[1756941645318,0.002,4471.2,4471.1,4.51591061]
[1756941645504,0.002,4471.2,4471.1,8.26991061]
[1756941651821,0.002,4471.2,4471.1,4.51591061]
[1756941652128,0.002,4471.2,4471.1,8.26791061]
[1756941652633,1.2035,4471.2,4471.1,8.26791061]
[1756941652806,1.2035,4471.2,4471.1,7.82058607]
[1756941653011,1.2035,4471.2,4471.1,4.06858607]
[1756941653240,1.2035,4471.2,4471.1,7.82058607]
[1756941653440,0.7483,4471.2,4471.1,7.82058607]
[1756941653644,1.2035,4471.2,4471.1,7.82058607]
[1756941657058,0.2907,4471.2,4471.1,7.82058607]
[1756941657624,1.2035,4471.2,4471.1,7.82058607]
[1756941660030,1.2035,4471.2,4471.1,4.06858607]
[1756941660235,0.7483,4471.2,4471.1,7.81958607]
[1756941661955,1.2057,4471.2,4471.1,7.81958607]
[1756941664162,0.7483,4471.2,4471.1,7.81958607]
[1756941665440,0.002,4471.2,4471.1,8.12988607]
[1756941665639,0.002,4471.2,4471.1,15.78811061]
[1756941665860,0.002,4471.2,4471.1,18.78811061]
[1756941666050,0.002,4471.2,4471.1,19.58011061]
[1756941666266,0.002,4471.2,4471.1,24.00453446]
[1756941667168,0.4547,4472.9,4472.3,2.23598595]
[1756941667391,0.4574,4473.0,4472.3,8.26419045]
[1756941667565,0.08961929,4472.6,4472.3,8.57449045]
[1756941667765,0.4547,4473.2,4472.3,9.01779045]
[1756941668162,0.08961929,4473.1,4472.3,9.01779045]
[1756941669167,0.08961929,4473.1,4472.3,14.81779045]
[1756941669382,0.4547,4473.2,4472.3,14.81779045]
[1756941670152,0.54431929,4473.2,4472.3,14.81779045]
[1756941670562,0.4574,4473.1,4472.3,14.81779045]
[1756941671462,0.4574,4473.1,4472.3,14.37449045]
[1756941672294,0.4574,4473.1,4472.3,14.81779045]
[1756941674359,0.4547,4473.0,4472.3,14.37449045]
[1756941674993,1.2045,4472.4,4472.3,10.31419045]
[1756941675191,1.2045,4472.4,4472.3,13.61598595]
[1756941675694,0.7471,4472.4,4472.3,13.61598595]
[1756941676559,1.2045,4472.4,4472.3,9.86698595]
[1756941676760,1.2045,4472.4,4472.3,13.61498595]
[1756941677692,1.2045,4472.4,4472.3,7.81498595]
[1756941679006,0.7471,4472.4,4472.3,7.81498595]
[1756941679509,1.2045,4472.4,4472.3,7.81498595]
[1756941679807,1.2045,4472.4,4472.3,1.831]
[1756941680008,1.2045,4472.4,4472.3,5.579]
[1756941682711,2.23626081,4471.8,4471.5,1.719]
[1756941682913,4.82682385,4471.6,4470.8,1.857]
[1756941683074,4.42442385,4471.2,4470.8,1.745]
[1756941683282,0.9121,4471.1,4470.9,3.226]
[1756941683483,0.2904,4471.0,4470.9,3.226]
[1756941683698,1.2025,4471.0,4470.9,3.226]
[1756941684103,1.2025,4471.0,4470.9,3.748]
[1756941684287,3.43913609,4471.0,4470.9,3.748]
[1756941684479,7.86355994,4471.0,4470.9,3.748]
[1756941685381,8.53609032,4471.0,4470.9,3.748]
[1756941687521,6.29945423,4471.0,4470.9,3.748]
[1756941687918,8.53609032,4471.0,4470.9,3.748]
[1756941688806,6.29945423,4471.0,4470.9,3.748]
[1756941688992,8.53609032,4471.0,4470.8,0.026]
[1756941689202,0.112,4470.9,4470.8,0.026]
[1756941689820,1.3145,4470.9,4470.8,0.026]
[1756941694611,8.3345,4470.9,4470.8,0.026]
[1756941695813,7.4224,4470.9,4470.8,0.026]
[1756941696034,8.3378,4470.9,4470.8,0.026]
[1756941696847,8.3378,4470.9,4470.8,3.774]
[1756941697855,13.57448612,4470.9,4470.8,0.026]
[1756941698257,13.87929822,4470.9,4470.8,0.026]
[1756941698475,2.23693629,4470.4,4470.3,0.001]
[1756941698766,13.68136014,4470.4,4470.3,0.001]
[1756941698971,14.89136014,4470.4,4470.3,0.001]
[1756941699127,15.00336014,4470.4,4470.3,0.001]
[1756941699849,18.00336014,4470.4,4470.3,0.001]
[1756941700534,22.73259609,4470.4,4470.3,0.001]
[1756941702450,23.52459609,4470.4,4470.3,0.001]
[1756941704943,2.23713646,4470.0,4469.9,0.001]
[1756941705246,13.83195737,4470.0,4469.9,0.001]
[1756941705467,14.12097241,4470.0,4469.9,0.001]
[1756941705782,22.05637241,4470.0,4469.9,0.001]
[1756941705954,26.48079626,4470.0,4469.9,0.001]
[1756941706462,27.27279626,4470.0,4469.9,0.001]
[1756941706662,2.23723656,4469.8,4469.1,0.001]
[1756941706840,7.53642385,4469.2,4469.1,0.001]
[1756941707041,7.83102385,4469.2,4469.1,0.001]
[1756941707273,10.98396076,4469.2,4469.1,0.001]
[1756941709679,11.28877286,4469.2,4469.1,0.001]
[1756941711354,10.82287286,4469.2,4469.1,0.001]
[1756941711539,11.71699923,4469.2,4469.1,0.001]
[1756941711743,8.43055022,4469.2,4469.1,0.001]
[1756941711939,14.71068713,4469.2,4469.1,0.001]
[1756941712760,15.16018713,4469.2,4469.1,0.001]
[1756941713781,11.41218713,4469.2,4469.1,0.001]
[1756941715161,10.96268713,4469.2,4469.1,0.001]
[1756941715363,17.98268713,4469.2,4469.1,0.001]
[1756941716588,18.89808713,4469.2,4469.1,0.001]
[1756941716885,17.98268713,4469.2,4469.1,0.001]
[1756941720373,18.90958713,4469.2,4469.1,0.001]
[1756941720700,19.21439923,4469.2,4469.1,0.001]
[1756941720903,18.28749923,4469.2,4469.1,0.001]
[1756941721102,22.03549923,4469.2,4469.1,0.001]
[1756941721403,22.96239923,4469.2,4469.1,0.001]
[1756941725708,22.48209923,4469.2,4469.1,0.001]
[1756941726013,16.11653691,4469.2,4469.1,0.31]
[1756941726176,12.36953691,4469.2,4469.1,0.31]
[1756941726807,12.36953691,4469.2,4469.1,0.001]
[1756941730621,12.67193691,4469.2,4469.1,0.001]
[1756941731716,13.59883691,4469.2,4469.1,0.001]
[1756941733185,12.36953691,4469.2,4469.1,0.7832]
[1756941733410,7.132,4469.2,4469.1,0.7832]
[1756941733610,7.02,4469.2,4469.1,3.45168698]
[1756941733804,7.02,4469.2,4469.1,4.03462417]
[1756941734015,7.02,4469.2,4469.1,3.45168698]
[1756941734219,0.002,4470.0,4469.4,2.23741591]
[1756941734512,0.112,4469.8,4469.5,0.9041]
[1756941734825,0.112,4469.8,4469.7,0.309]
[1756941735323,0.112,4469.8,4469.7,1.2131]
[1756941738815,0.112,4469.8,4469.7,0.7822]
[1756941739214,7.132,4469.8,4469.7,0.7822]
[1756941739999,2.23733714,4469.6,4469.1,0.001]
[1756941740198,0.112,4469.2,4469.1,0.001]
[1756941740427,0.112,4469.2,4469.1,0.4742]
[1756941740629,0.112,4469.2,4469.1,1.2141]
[1756941740798,7.99754457,4469.8,4469.1,1.2141]
[1756941740799,0.112,4469.5,4469.1,3.45168698]
[1756941741002,7.02,4469.8,4469.3,2.23744296]
[1756941741226,7.02,4469.8,4469.7,0.309]
[1756941745034,7.132,4469.9,4469.7,0.309]
[1756941745403,0.002,4469.8,4469.7,0.309]
[1756941746536,0.00758496,4469.8,4469.6,0.001]
[1756941748202,0.002,4469.8,4469.6,0.001]
[1756941748506,0.00758496,4469.8,4469.6,0.001]
[1756941749456,0.3024,4469.7,4469.6,0.001]
[1756941749669,6.02958698,4469.1,4469.0,0.001]
[1756941749806,6.02963705,4469.0,4468.9,0.001]
[1756941750007,7.29563705,4469.0,4468.9,0.001]
[1756941750204,10.24863705,4469.0,4468.9,0.001]
[1756941750447,10.33835744,4469.0,4468.9,0.001]
[1756941754709,6.59335744,4469.0,4468.9,0.001]
[1756941754918,5.62455744,4469.0,4468.9,0.001]
[1756941755108,5.62455744,4469.0,4468.9,0.8005]
[1756941755109,12.34735744,4469.0,4468.9,0.8005]
[1756941755315,12.34735744,4469.0,4468.9,0.3048]
[1756941755514,12.34735744,4469.0,4468.9,0.001]
[1756941756450,12.64455744,4469.0,4468.9,0.001]
[1756941757250,12.34735744,4469.0,4468.9,0.001]
[1756941758936,12.34735744,4469.0,4468.9,0.3048]
[1756941759648,12.34735744,4469.0,4468.9,0.8005]
[1756941759854,10.10972039,4469.0,4468.9,0.8005]
[1756941760052,10.02,4469.0,4468.9,1.2623]
[1756941761167,10.02,4469.0,4468.9,0.3048]
[1756941761532,12.25763705,4469.0,4468.9,0.3048]
[1756941763482,10.02,4469.0,4468.9,0.3048]
[1756941763632,10.02,4469.0,4468.9,0.8005]
[1756941763838,10.02,4469.0,4468.9,1.2623]
[1756941764544,3.0,4469.0,4468.9,1.2623]
[1756941764746,0.112,4469.3,4468.9,1.2623]
[1756941764935,0.112,4469.3,4469.0,0.9575]
[1756941765332,0.112,4469.3,4469.2,0.3038]
[1756941765539,0.002,4469.8,4469.2,0.3038]
[1756941765739,0.002,4469.8,4469.3,0.9575]
[1756941766141,0.002,4469.8,4469.7,0.3038]
[1756941766435,0.114,4469.8,4469.7,0.3038]
[1756941766866,2.35123656,4469.8,4469.7,0.3038]
[1756941767442,2.35123656,4469.8,4469.4,0.4957]
[1756941767443,2.23729733,4469.7,4469.4,0.4957]
[1756941769051,0.114,4469.8,4469.4,0.4957]
[1756941769456,2.35124829,4469.8,4469.4,0.4957]
[1756941771158,2.35124829,4469.8,4469.1,1.0695]
[1756941771159,2.23729884,4469.7,4469.1,1.0695]
[1756941772671,2.35683507,4469.8,4469.1,1.0695]
[1756941773593,4.42999519,4469.7,4469.1,3.30706848]
[1756941774550,4.42999519,4469.7,4469.1,1.0695]
[1756941775190,4.42999519,4469.7,4469.1,3.30707852]
[1756941775592,4.42999519,4469.7,4469.1,2.84527852]
[1756941776086,4.42999519,4469.7,4469.2,5.98253621]
[1756941776297,4.42999519,4469.7,4469.2,4.2407]
[1756941778396,4.42999519,4469.7,4469.2,0.4957]
[1756941778695,4.42999519,4469.7,4469.3,3.745]
[1756941780205,6.66728292,4469.7,4469.3,3.745]
[1756941780407,0.00558496,4469.6,4469.3,3.745]
[1756941781509,4.42999519,4469.7,4469.3,3.745]
[1756941782008,4.90329519,4469.7,4469.3,3.745]
[1756941782506,4.42999519,4469.7,4469.3,3.745]
[1756941782706,4.42999519,4469.7,4469.3,4.2413]
[1756941785797,4.90329519,4469.7,4469.3,3.745]
[1756941789110,4.90329519,4469.7,4469.1,2.34958183]
[1756941789273,4.42999519,4469.7,4469.2,5.98149271]
[1756941789601,4.42999519,4469.7,4469.2,4.2403]
[1756941789767,4.90329519,4469.7,4469.2,4.2403]
[1756941790597,0.2964,4469.3,4469.1,0.112]
[1756941790767,0.00558496,4469.2,4469.1,0.112]
[1756941790965,0.30198496,4469.3,4469.2,3.744]
[1756941791198,0.2964,4469.3,4469.2,3.744]
[1756941791703,0.7697,4469.3,4469.2,3.744]
[1756941792475,4.2382,4469.3,4469.0,0.001]
[1756941792675,7.54199519,4469.1,4469.0,0.001]
[1756941793097,0.67275359,4469.3,4469.2,2.23753691]
[1756941793403,0.002,4469.8,4469.2,4.9896]
[1756941793404,0.114,4469.8,4469.2,4.9896]
[1756941793577,0.114,4469.8,4469.2,7.22709823]
[1756941793779,0.114,4469.8,4469.3,2.23748685]
[1756941794122,0.114,4469.8,4469.3,0.4963]
[1756941794404,0.5873,4469.8,4469.3,2.73374517]
[1756941794575,0.5873,4469.8,4469.3,0.4963]
[1756941795399,0.5873,4469.8,4469.3,2.73376429]
[1756941795577,7.6073,4469.8,4469.3,2.73376429]
[1756941795976,0.4733,4469.7,4469.3,2.23746429]
[1756941796795,7.134,4469.8,4469.3,2.23746429]
[1756941796999,7.6073,4469.8,4469.3,2.23746429]
[1756941798012,7.6073,4469.8,4469.2,5.98152751]
[1756941798309,7.6073,4469.8,4469.2,5.98153231]
[1756941799975,7.6073,4469.8,4469.3,2.23746427]
[1756941800178,7.022,4469.8,4469.7,0.3046]
[1756941800377,7.022,4469.8,4469.7,4.5449]
[1756941800623,7.022,4469.8,4469.7,4.0486]
[1756941800801,7.022,4469.8,4469.7,3.744]
[1756941801205,7.3184,4469.8,4469.7,3.744]
[1756941801406,8.2602,4469.8,4469.6,3.744]
[1756941801583,0.94738496,4469.7,4469.0,0.113]
[1756941801784,0.2964,4469.1,4469.0,0.001]
[1756941802098,2.53957194,4469.1,4469.0,0.001]
[1756941802298,6.59337194,4469.1,4469.0,0.001]
[1756941802497,6.58778698,4469.1,4469.0,0.001]
[1756941802692,13.87077483,4469.1,4469.0,0.001]
[1756941803203,17.35178698,4469.1,4469.0,0.001]
[1756941803616,17.44150375,4469.1,4469.0,0.001]
[1756941805113,10.51811677,4469.1,4469.0,0.001]
[1756941806416,10.22171677,4469.1,4469.0,0.001]
[1756941806619,7.132,4469.1,4469.0,0.3056]
[1756941806819,7.02,4469.1,4469.0,0.8019]
[1756941807411,3.112,4469.4,4469.0,0.3056]
[1756941807616,0.00558496,4469.3,4469.0,0.001]
[1756941808183,0.11758496,4469.4,4469.0,0.001]
[1756941808582,0.59088496,4469.4,4469.0,0.001]
[1756941809020,0.11758496,4469.4,4469.0,0.001]
[1756941809710,2.82834248,4469.4,4469.0,0.001]
[1756941809922,0.11758496,4469.4,4469.0,0.001]
[1756941810414,2.82255531,4469.4,4469.0,0.001]
[1756941810605,2.23749386,4469.3,4469.0,0.001]
[1756941810807,2.52578698,4469.1,4469.0,0.001]
[1756941811003,2.63778698,4469.1,4469.0,0.001]
[1756941811233,3.56978698,4469.1,4469.0,0.001]
[1756941812024,3.65948806,4469.1,4469.0,0.001]
[1756941812440,3.66507302,4469.1,4469.0,0.001]
[1756941813997,1.42748604,4469.1,4469.0,0.001]
[1756941814297,1.42190108,4469.1,4469.0,0.001]
[1756941815139,3.65948806,4469.1,4469.0,0.001]
[1756941815845,1.42190108,4469.1,4469.0,0.001]
[1756941816076,0.95740108,4469.1,4469.0,0.001]
[1756941816352,0.20170108,4469.1,4469.0,0.001]
[1756941817845,0.20170108,4469.1,4469.0,0.3107]
[1756941818342,0.20170108,4469.1,4469.0,0.001]
[1756941818555,3.19498806,4469.1,4469.0,0.001]
[1756941818940,3.65948806,4469.1,4469.0,0.001]
[1756941819355,10.67948806,4469.1,4469.0,0.001]
[1756941820110,10.21498806,4469.1,4469.0,0.001]
[1756941820613,7.97740108,4469.1,4469.0,0.001]
[1756941820838,7.50990108,4469.1,4469.0,0.001]
[1756941821540,7.22170108,4469.1,4469.0,0.3107]
[1756941822536,7.02,4469.1,4469.0,0.785]
[1756941822910,7.02,4469.1,4469.0,3.48243705]
[1756941823210,0.002,4469.7,4469.3,2.23744627]
[1756941823438,0.002,4469.7,4469.4,5.98142937]
[1756941823605,0.002,4469.7,4469.6,0.3097]
[1756941825142,0.002,4469.7,4469.6,0.784]
[1756941825442,0.002,4469.7,4469.6,0.3097]
[1756941825642,0.002,4469.7,4469.3,2.80927907]
[1756941825643,0.29578496,4469.7,4469.3,0.112]
[1756941825941,0.76328496,4469.7,4469.4,3.744]
[1756941826547,0.00758496,4469.7,4469.4,3.744]
[1756941827145,0.2882,4469.5,4469.4,3.744]
[1756941827740,0.2882,4469.5,4469.3,0.112]
[1756941827907,0.2882,4469.5,4469.4,3.743]
[1756941828548,0.7557,4469.5,4469.4,3.743]
[1756941828758,0.7557,4469.5,4469.3,3.743]
[1756941828759,1.2202,4469.5,4469.3,3.743]
[1756941828914,0.932,4469.4,4469.3,3.743]
[1756941829115,1.2202,4469.4,4469.3,3.743]
[1756941830222,1.2202,4469.4,4469.0,1.834]
[1756941830223,0.7527,4469.4,4469.0,0.113]
[1756941830429,2.23758698,4469.1,4469.0,0.001]
[1756941830634,2.35517194,4469.1,4469.0,0.001]
[1756941830829,3.10787194,4469.1,4469.0,0.001]
[1756941831043,3.66507624,4469.1,4469.0,0.001]
[1756941831544,10.68507624,4469.1,4469.0,0.001]
[1756941831715,10.67949128,4469.1,4469.0,0.001]
[1756941831913,13.67949128,4469.1,4469.0,0.001]
[1756941832649,13.21499128,4469.1,4469.0,0.001]
[1756941832826,10.5099043,4469.1,4469.0,0.001]
[1756941833027,12.74749128,4469.1,4469.0,0.001]
[1756941833534,13.21499128,4469.1,4469.0,0.001]
[1756941834059,13.67949128,4469.1,4469.0,0.001]
[1756941835954,13.21499128,4469.1,4469.0,0.001]
[1756941836943,12.74749128,4469.1,4469.0,0.001]
[1756941838148,10.2217043,4469.1,4469.0,0.001]
[1756941838549,12.45929128,4469.1,4469.0,0.001]
[1756941838752,10.2217043,4469.1,4469.0,0.001]
[1756941838957,10.2217043,4469.1,4469.0,0.3107]
[1756941839250,12.45929128,4469.1,4469.0,0.3107]
[1756941839449,12.45929128,4469.1,4469.0,0.001]
[1756941839754,12.74749128,4469.1,4469.0,0.001]
[1756941839956,10.2217043,4469.1,4469.0,0.001]
[1756941840251,10.2217043,4469.1,4469.0,0.309]
[1756941840753,7.2217043,4469.1,4469.0,0.309]
[1756941840960,7.2217043,4469.1,4469.0,0.001]
[1756941841157,7.5106043,4469.1,4469.0,0.001]
[1756941841358,7.9714043,4469.1,4469.0,0.001]
[1756941841557,7.2217043,4469.1,4469.0,0.001]
[1756941841734,7.2217043,4469.1,4469.0,0.309]
[1756941842242,7.2217043,4469.1,4469.0,0.7865]
[1756941842959,7.02,4469.1,4469.0,0.7865]
[1756941843259,0.002,4469.7,4469.0,7.33913329]
[1756941843433,0.002,4469.7,4469.1,1.21411333]
[1756941843635,0.002,4469.7,4469.2,2.23749264]
[1756941843849,0.002,4469.7,4469.6,0.308]
[1756941844742,2.23928661,4469.7,4469.3,0.4775]
[1756941845262,0.002,4469.7,4469.3,0.4775]